{"text_format":"3","workbook":"xlsx","n_sheets":1,"sheets":["IZVEŠTAJ O TROŠKOVIMA"],"not_rendered":{"defined_names":4},"read":"whole","date_system":"1900"}

{"sheet":"IZVEŠTAJ O TROŠKOVIMA","index":0,"n_rows":22,"n_cols":12,"rows_kept":22,"merged":[[1,2,1,3],[1,5,1,6],[3,2,3,3],[3,6,3,7],[3,10,3,11],[4,2,4,3],[4,6,4,7],[4,10,4,11],[20,2,20,4],[20,6,20,8],[21,2,21,4],[21,6,21,8]]}
[null,"IZVEŠTAJ O TROŠKOVIMA",{"$nulls":8},"Samo za korišćenje u kancelariji"]
[null,"SVRHA:",null,null,"BROJ IZVODA:",null,null,"PERIOD OTPLATE","OD:",{"$f":"IF(COUNTA(Podaci_o_troškovima[Datum])=0,\"\",MIN(Podaci_o_troškovima[Datum]))","v":""},"DO:",{"$f":"IF(COUNTA(Podaci_o_troškovima[Datum])=0,\"\",MAX(Podaci_o_troškovima[Datum]))","v":""}]
[null,"INFORMACIJE O ZAPOSLENOM:"]
[null,"IME",{"$nulls":3},"POLOŽAJ",{"$nulls":3},"SSN"]
[null,"SEKTOR",{"$nulls":3},"MENADŽER",{"$nulls":3},"ID ZAPOSLENOG"]
[]
[null,"Datum","Nalog","Opis","Hotel","Prevoz","Gorivo","Hrana","Telefon","Zabava","Razno","Ukupno"]
[{"$nulls":11},{"$f":"SUM(Podaci_o_troškovima[[#This Row],[Hotel]:[Razno]])","v":{"v":0,"d":"0.00 RSD"}}]
[{"$nulls":11},{"$f":"SUM(Podaci_o_troškovima[[#This Row],[Hotel]:[Razno]])","v":{"v":0,"d":"0.00 RSD"}}]
[{"$nulls":11},{"$f":"SUM(Podaci_o_troškovima[[#This Row],[Hotel]:[Razno]])","v":{"v":0,"d":"0.00 RSD"}}]
[{"$nulls":11},{"$f":"SUM(Podaci_o_troškovima[[#This Row],[Hotel]:[Razno]])","v":{"v":0,"d":"0.00 RSD"}}]
[{"$nulls":11},{"$f":"SUM(Podaci_o_troškovima[[#This Row],[Hotel]:[Razno]])","v":{"v":0,"d":"0.00 RSD"}}]
[{"$nulls":11},{"$f":"SUM(Podaci_o_troškovima[[#This Row],[Hotel]:[Razno]])","v":{"v":0,"d":"0.00 RSD"}}]
[{"$nulls":11},{"$f":"SUM(Podaci_o_troškovima[[#This Row],[Hotel]:[Razno]])","v":{"v":0,"d":"0.00 RSD"}}]
[{"$nulls":11},{"$f":"SUM(Podaci_o_troškovima[[#This Row],[Hotel]:[Razno]])","v":{"v":0,"d":"0.00 RSD"}}]
[{"$nulls":11},{"$f":"SUM(Podaci_o_troškovima[[#This Row],[Hotel]:[Razno]])","v":{"v":0,"d":"0.00 RSD"}}]
[{"$nulls":11},{"$f":"SUM(Podaci_o_troškovima[[#This Row],[Hotel]:[Razno]])","v":{"v":0,"d":"0.00 RSD"}}]
[{"$nulls":11},{"$f":"SUM(Podaci_o_troškovima[[#This Row],[Hotel]:[Razno]])","v":{"v":0,"d":"0.00 RSD"}}]
[null,"Zbir",null,null,{"$f":"SUBTOTAL(109,Podaci_o_troškovima[Hotel])","v":{"v":0,"d":"0.00 RSD"}},{"$f":"SUBTOTAL(109,Podaci_o_troškovima[Prevoz])","v":{"v":0,"d":"0.00 RSD"}},{"$f":"SUBTOTAL(109,Podaci_o_troškovima[Gorivo])","v":{"v":0,"d":"0.00 RSD"}},{"$f":"SUBTOTAL(109,Podaci_o_troškovima[Hrana])","v":{"v":0,"d":"0.00 RSD"}},{"$f":"SUBTOTAL(109,Podaci_o_troškovima[Telefon])","v":{"v":0,"d":"0.00 RSD"}},{"$f":"SUBTOTAL(109,Podaci_o_troškovima[Zabava])","v":{"v":0,"d":"0.00 RSD"}},{"$f":"SUBTOTAL(109,Podaci_o_troškovima[Razno])","v":{"v":0,"d":"0.00 RSD"}},{"$f":"SUBTOTAL(109,Podaci_o_troškovima[Ukupno])","v":{"v":0,"d":"0.00 RSD"}}]
[{"$nulls":10},"MEĐUVREDNOST",{"$f":"Podaci_o_troškovima[[#Totals],[Ukupno]]","v":{"v":0,"d":"0.00 RSD"}}]
[null,"ODOBRENO:",{"$nulls":3},"BELEŠKE: ",{"$nulls":4},"AVANSNE UPLATE",{"v":0,"d":"0.00 RSD"}]
[{"$nulls":10},"UKUPNO",{"$f":"Međuvrednost-Avansne_uplate","v":{"v":0,"d":"0.00 RSD"}}]